bitfinex-derivatives/quotes_ETHF0:USTF0_20250212
["timestamp","ask_amount","ask_price","bid_price","bid_amount"]
[1739383622782,3.2078,2666.8,2666.3,1.1454]
[1739383623079,0.74996,2666.7,2666.6,0.74995]
[1739383623479,0.74999,2666.6,2666.5,0.74999]
[1739383623672,3.2078,2666.8,2666.3,1.1454]
[1739383623877,0.00562335,2667.4,2666.6,1.87496]
[1739383623878,3.2078,2667.1,2666.6,1.87496]
[1739383624077,0.74989,2667.0,2666.9,0.74988]
[1739383624279,3.2078,2667.1,2666.6,1.87496]
[1739383624482,3.95765,2667.1,2667.0,0.74987]
[1739383624778,0.74988,2667.0,2666.9,0.74987]
[1739383625386,3.2078,2667.1,2666.8,0.7499]
[1739383625387,0.74993,2666.9,2666.8,0.7499]
[1739383625785,0.74997,2666.7,2666.6,0.74996]
[1739383626083,0.74997,2666.7,2666.3,3.02053]
[1739383626084,0.74997,2666.7,2666.3,1.1454]
[1739383626286,0.74998,2666.7,2666.6,0.74997]
[1739383626584,0.75004,2666.5,2666.4,0.75002]
[1739383626773,3.2078,2666.7,2666.3,1.1454]
[1739383626977,0.75013,2666.1,2666.0,0.75014]
[1739383627483,0.75011,2666.2,2666.0,0.75014]
[1739383627680,3.2078,2666.4,2665.7,4.3631]
[1739383627883,3.95786,2666.4,2666.2,0.75008]
[1739383628079,3.55950032,2666.4,2665.7,4.3631]
[1739383628479,0.75013,2666.1,2666.0,0.75014]
[1739383629084,3.55950032,2666.4,2666.0,0.75014]
[1739383629683,3.55950032,2666.4,2665.7,4.3631]
[1739383629885,2.20270032,2666.4,2666.3,0.75006]
[1739383630681,2.60104,2666.4,2666.3,0.75006]
[1739383631888,0.75009,2666.2,2666.1,0.75012]
[1739383632086,3.2078,2666.3,2665.7,4.3631]
[1739383632284,0.75015,2666.1,2666.0,0.75014]
[1739383632990,3.55950032,2666.3,2665.7,4.3631]
[1739383633195,0.75019,2665.9,2665.8,0.75018]
[1739383633388,0.75019,2665.9,2665.3,3.2078]
[1739383633389,5.0578,2665.9,2665.3,3.2078]
[1739383633693,0.75036,2665.3,2665.1,1.29968]
[1739383633886,7.07243373,2665.6,2665.1,1.29968]
[1739383634189,0.75037,2665.2,2665.1,0.5493]
[1739383635284,3.55950032,2665.3,2664.4,0.7506]
[1739383635285,0.7505,2664.8,2664.4,0.7506]
[1739383635494,3.2078,2664.8,2664.4,1.32568]
[1739383635694,0.75064,2664.3,2664.1,0.5939]
[1739383635900,0.75074,2664.0,2663.8,0.5751]
[1739383636091,3.2078,2663.9,2663.3,0.5939]
[1739383636294,3.2078,2663.6,2662.9,3.2078]
[1739383636596,3.2078,2663.3,2662.8,0.5751]
[1739383636799,1.851,2663.2,2662.6,4.55279]
[1739383637099,1.851,2663.2,2662.9,0.05134613]
[1739383637401,3.2078,2663.0,2662.9,0.05134613]
[1739383637597,3.2078,2663.0,2662.1,3.86463373]
[1739383637598,3.2078,2663.0,2661.8,7.07243373]
[1739383637799,3.2078,2662.6,2661.8,3.2078]
[1739383638102,0.75124,2662.2,2661.5,3.2078]
[1739383638499,2.60223,2662.2,2661.5,3.2078]
[1739383638801,1.851,2662.2,2661.5,3.2078]
[1739383639008,2.60224,2662.2,2661.5,3.2078]
[1739383639192,3.2078,2662.0,2661.1,3.2078]
[1739383639992,3.2078,2661.7,2661.1,3.2078]
[1739383640294,0.75169,2660.6,2660.1,3.2078]
[1739383640498,8.92343373,2660.5,2659.6,20.2343647]
[1739383640800,19.657,2660.9,2660.0,7.07243373]
[1739383641008,1.851,2661.6,2660.8,3.2078]
[1739383641297,3.95915,2661.8,2661.1,3.95933]
[1739383641503,3.95915,2661.8,2661.0,3.86463373]
[1739383641504,3.2078,2661.8,2661.4,3.2078]
[1739383641803,1.851,2662.1,2661.4,3.2078]
[1739383642003,1.851,2662.1,2661.7,3.2078]
[1739383642200,3.2078,2661.9,2661.1,3.2078]
[1739383642400,3.2078,2661.9,2661.5,0.00563454]
[1739383642595,7.07243373,2661.6,2660.5,0.75169]
[1739383642800,0.7515,2661.2,2660.4,0.75173]
[1739383642997,3.2078,2661.0,2660.0,3.7571]
[1739383643201,3.95944,2660.7,2660.0,3.7571]
[1739383643396,0.7517,2660.5,2660.0,3.7571]
[1739383643599,3.2078,2660.3,2660.0,0.5493]
[1739383643799,3.95956,2660.3,2660.0,0.5493]
[1739383644001,3.95956,2660.3,2659.8,0.581]
[1739383644503,3.2078,2660.3,2659.6,3.2078]
[1739383644710,0.00563454,2660.5,2660.0,0.75184]
[1739383644896,5.0598,2660.4,2659.6,3.2078]
[1739383645096,5.0598,2660.4,2659.9,0.75185]
[1739383645505,0.00563454,2660.5,2660.0,3.2078]
[1739383646403,0.00563454,2660.5,2659.5,3.86463373]
[1739383646404,3.2078,2660.3,2659.6,3.2078]
[1739383646705,3.95957,2660.3,2659.8,0.75189]
[1739383647103,5.0608,2660.3,2659.6,3.2078]
[1739383647503,3.86463373,2659.7,2658.8,3.2078]
[1739383647709,3.2078,2659.3,2658.9,0.75215]
[1739383648205,1.853,2659.6,2658.8,3.2078]
[1739383648206,0.752,2659.5,2659.0,0.7521]
[1739383648396,0.752,2659.5,2658.8,3.2078]
[1739383648600,0.75201,2659.5,2659.0,0.75212]
[1739383649105,5.0608,2659.6,2658.8,3.2078]
[1739383649407,1.853,2659.5,2658.9,3.2078]
[1739383649607,1.853,2659.5,2659.2,0.75207]
[1739383649809,1.853,2659.5,2658.6,3.2078]
[1739383650000,1.853,2659.5,2659.3,0.75202]
[1739383650202,1.853,2659.5,2658.5,3.2078]
[1739383650408,0.75212,2659.1,2658.8,3.2078]
[1739383650603,5.0608,2659.5,2658.8,3.2078]
[1739383650809,0.75191,2659.8,2659.4,0.75201]
[1739383651010,0.75188,2659.9,2659.5,3.95978]
[1739383651505,3.2078,2660.1,2659.5,3.2078]
[1739383651706,3.2078,2660.1,2659.8,0.7519]
[1739383652108,3.2078,2660.1,2659.5,3.2078]
[1739383652410,3.2078,2660.6,2659.8,3.2078]
[1739383652605,3.2078,2660.6,2660.3,0.75174]
[1739383652813,0.75164,2660.8,2660.4,3.95953]
[1739383653010,0.75166,2660.7,2660.4,3.95953]
[1739383653399,5.0778,2661.0,2660.3,3.95954]
[1739383653605,0.75169,2660.6,2660.3,3.95955]
[1739383654111,5.0778,2661.0,2660.3,3.95955]
[1739383654308,1.87463454,2660.5,2659.9,3.7614]
[1739383654614,1.87463454,2660.5,2659.7,3.2078]
[1739383655111,2.62634454,2660.5,2660.2,0.75177]
[1739383655511,0.00563454,2660.5,2660.4,0.75173]
[1739383655701,0.00563454,2660.5,2660.0,3.2078]
[1739383656108,0.00563454,2660.5,2660.4,0.75173]
[1739383657409,0.00563454,2660.5,2660.3,3.2078]
[1739383657615,0.00563454,2660.5,2660.0,3.2078]
[1739383657808,0.7518,2660.2,2660.0,3.2078]
[1739383658112,1.88663454,2660.5,2660.0,3.2078]
[1739383658414,1.88663454,2660.5,2660.4,0.75173]
[1739383659009,0.00563454,2660.5,2660.4,0.75173]
[1739383659509,0.00563454,2660.5,2660.3,3.2078]
[1739383659510,0.75173,2660.4,2660.1,0.7518]
[1739383659709,0.75175,2660.4,2660.1,0.75179]
[1739383660103,3.21343454,2660.5,2659.8,5.0875]
[1739383660309,0.75176,2660.3,2660.1,0.7518]
[1739383660508,0.75175,2660.4,2660.1,0.7518]
[1739383660915,3.21343454,2660.5,2660.0,0.75183]
[1739383661214,0.75179,2660.2,2660.0,0.75183]
[1739383661918,0.75175,2660.4,2659.8,3.2078]
[1739383662219,3.96515454,2660.5,2659.8,3.2078]
[1739383662411,3.96515454,2660.5,2660.2,0.75176]
[1739383662610,3.21343454,2660.5,2660.2,0.75176]
[1739383662812,0.75174,2660.4,2660.2,0.75176]
[1739383663013,3.96514454,2660.5,2660.3,0.75173]
[1739383663213,3.21343454,2660.5,2659.9,1.87968]
[1739383663420,3.21343454,2660.5,2660.4,0.75173]
[1739383663421,0.00563454,2660.5,2660.4,0.75173]
[1739383663618,0.00563454,2660.5,2660.1,3.2078]
[1739383663819,0.00563454,2660.5,2659.8,3.2078]
[1739383664118,0.00563454,2660.5,2660.2,0.75178]
[1739383664119,0.75173,2660.4,2660.2,0.75178]
[1739383664314,0.00563454,2660.5,2659.8,5.08751]
[1739383664620,0.00563454,2660.5,2659.9,1.87964]
[1739383664811,0.75734454,2660.5,2660.4,0.75173]
[1739383665015,0.00563454,2660.5,2660.4,0.75173]
[1739383666020,0.00563454,2660.5,2660.1,3.2078]
[1739383666214,0.75175,2660.4,2660.1,3.2078]
[1739383666415,0.75175,2660.4,2660.2,0.75177]
[1739383667016,0.00563454,2660.5,2660.2,0.75177]
[1739383667218,0.75178,2660.2,2660.1,3.2078]
[1739383667521,0.00563454,2660.5,2660.1,3.2078]
[1739383667823,0.00563454,2660.5,2660.4,0.75173]
[1739383668325,0.00563454,2660.5,2660.4,3.95953]
[1739383670426,0.75161,2660.9,2660.4,3.95953]
[1739383670427,0.7516,2660.9,2660.8,0.75161]
[1739383670614,0.35260164,2661.1,2660.5,0.0004863]
[1739383671126,5.0866,2661.2,2660.5,0.0004863]
[1739383671127,3.2078,2660.9,2660.5,0.0004863]
[1739383671321,0.75167,2660.6,2660.5,0.0004863]
[1739383671527,3.56040164,2660.9,2660.5,0.0004863]
[1739383671721,5.42940164,2660.9,2660.5,0.0004863]
[1739383672026,0.75166,2660.7,2660.6,0.75166]
[1739383672223,0.35260164,2660.8,2660.7,0.75164]
[1739383673228,2.62059,2660.9,2660.8,0.75161]
[1739383673634,1.869,2660.9,2660.8,0.75161]
[1739383673930,2.62059,2660.9,2660.8,0.75161]
[1739383674328,1.869,2660.9,2660.8,0.75161]
[1739383674827,0.00563454,2661.0,2660.9,0.75159]
[1739383676132,0.75719454,2661.0,2660.9,0.75159]
[1739383676534,0.00563454,2661.0,2660.6,3.2078]
[1739383676927,0.00563454,2661.0,2660.5,0.0004863]
[1739383677128,0.00563454,2661.0,2660.9,0.75159]
[1739383678128,0.75719454,2661.0,2660.9,0.75159]
[1739383679132,0.75164,2660.8,2660.7,0.75163]
[1739383680028,0.75719454,2661.0,2660.9,0.75159]
[1739383682929,0.00563454,2661.0,2660.9,0.75159]
[1739383683229,0.35250315,2661.2,2660.9,3.95939]
[1739383683435,1.854,2661.7,2661.6,0.75139]
[1739383683734,1.00591,2661.9,2661.8,0.75133]
[1739383684241,1.75721,2661.9,2661.8,0.75133]
[1739383684430,1.00591,2661.9,2661.8,0.75133]
[1739383685639,1.00591,2661.9,2661.5,1.87849]
[1739383685640,0.75136,2661.8,2661.4,3.2078]
[1739383685827,1.75724,2661.9,2661.7,0.75135]
[1739383686022,1.00591,2661.9,2661.4,3.2078]
[1739383686234,0.75136,2661.7,2661.6,0.75137]
[1739383686432,1.00591,2661.9,2661.5,0.5992]
[1739383686630,1.00591,2661.9,2661.8,3.95913]
[1739383687242,0.00563454,2662.1,2662.0,0.75128]
[1739383687931,3.758,2663.2,2662.1,1.87809]
[1739383688134,0.75104,2662.9,2662.7,0.75108]
[1739383688828,3.88037674,2663.1,2662.4,3.2078]
[1739383689033,8.96580674,2662.8,2662.1,3.2078]
[1739383689233,7.08817674,2662.5,2661.7,3.807]
[1739383689432,7.08817674,2662.5,2661.7,4.55835]
[1739383689433,0.7513,2661.9,2661.7,4.55835]
[1739383689836,1.854,2662.2,2661.7,3.2078]
[1739383690134,0.7513,2661.9,2661.3,3.7884]
[1739383690433,0.7513,2661.9,2661.3,4.53985]
[1739383690636,0.7513,2661.9,2661.4,0.75143]
[1739383691035,0.7513,2661.9,2661.5,0.75141]
[1739383691239,0.7513,2661.9,2661.3,3.7884]
[1739383691441,0.7513,2661.9,2661.3,4.53986]
[1739383691633,0.7513,2661.9,2661.3,3.7884]
[1739383692342,0.7513,2661.9,2661.3,4.53986]
[1739383692535,0.7513,2661.9,2661.4,0.75144]
[1739383692731,0.7513,2661.9,2661.5,0.75141]
[1739383692936,0.7513,2661.9,2661.4,0.75142]
[1739383693139,0.7513,2661.9,2661.3,4.53986]
[1739383693442,0.5485,2662.0,2661.6,0.75137]
[1739383693633,0.5485,2662.0,2661.3,3.7884]
[1739383693829,1.29979,2662.0,2661.6,0.75138]
[1739383694245,0.5485,2662.0,2661.6,0.75138]
[1739383694442,0.7513,2661.9,2661.6,0.75138]
[1739383695042,0.5485,2662.0,2661.3,3.7884]
[1739383695345,1.2998,2662.0,2661.7,0.75135]
[1739383695544,3.56023855,2662.1,2662.0,0.75128]
[1739383695545,5.41423855,2662.1,2662.0,0.75128]
[1739383695742,5.0618,2662.1,2661.6,3.2078]
[1739383695942,5.81306,2662.1,2661.8,0.75695454]
[1739383696138,5.81306,2662.1,2661.9,0.7513]
[1739383696341,0.75124,2662.2,2661.9,0.7513]
[1739383696541,3.7704,2662.4,2661.8,0.00563454]
[1739383696742,0.7513,2661.9,2661.8,0.00563454]
[1739383697142,3.95906,2662.1,2661.8,0.75694454]
[1739383697339,3.2078,2662.1,2661.8,0.00563454]
[1739383697546,0.75128,2662.0,2661.8,0.00563454]
[1739383697845,3.2078,2662.1,2661.8,0.00563454]
[1739383698147,0.75129,2662.0,2661.8,0.75696454]
[1739383698343,3.2078,2662.1,2661.8,0.75696454]
[1739383698344,3.95907,2662.1,2661.9,0.7513]
[1739383698551,5.0618,2662.1,2662.0,0.75128]
[1739383698938,1.854,2662.1,2662.0,0.75128]
[1739383699545,1.10355585,2662.4,2661.8,0.00563454]
[1739383699744,0.35236585,2662.4,2662.3,0.75119]
[1739383700339,0.75112,2662.6,2662.5,0.75113]
[1739383700740,0.5708,2662.7,2662.5,0.75113]
[1739383700741,1.32189,2662.7,2662.5,0.75113]
[1739383700947,0.75113,2662.6,2662.4,0.75115]
[1739383701151,0.75115,2662.5,2662.3,0.75118]
[1739383701449,0.92312941,2662.7,2662.0,5.08597]
[1739383701644,0.92312941,2662.7,2662.1,1.87811]
[1739383701841,1.10342941,2662.7,2662.5,0.75113]
[1739383702041,5.0618,2662.8,2662.1,1.87811]
[1739383702248,0.75112,2662.6,2662.1,1.87811]
[1739383702447,0.75109,2662.7,2662.6,0.7511]
[1739383703158,5.0618,2662.8,2662.1,1.87811]
[1739383703159,0.75112,2662.6,2662.1,1.87811]
[1739383703357,5.0618,2662.8,2662.4,0.75115]
[1739383703548,0.75113,2662.6,2662.4,0.75115]
[1739383703748,5.0618,2662.8,2662.4,0.75115]
[1739383704048,0.75114,2662.5,2662.4,0.75115]
[1739383704247,10.81985674,2662.8,2662.0,3.2078]
[1739383704456,0.75112,2662.6,2662.5,0.75112]
[1739383704654,8.94217674,2662.8,2662.1,1.87813]
[1739383704851,0.75115,2662.5,2662.4,0.75116]
[1739383705355,0.75118,2662.4,2662.3,0.75118]
[1739383706251,0.75117,2662.4,2662.3,0.75116]
[1739383706456,2.23003939,2662.7,2662.0,3.2078]
[1739383706659,0.75125,2662.1,2662.0,3.95907]
[1739383706850,0.75125,2662.1,2662.0,3.95908]
[1739383707660,1.853,2662.3,2662.0,3.95908]
[1739383707661,0.75124,2662.2,2662.1,0.75123]
[1739383707950,1.87813,2662.1,2661.4,3.2078]
[1739383708159,1.87813,2662.1,2661.1,1.87883]
[1739383708160,0.75146,2661.4,2661.1,0.75153]
[1739383708455,0.75151,2661.2,2660.6,3.7844]
[1739383708656,0.75151,2661.2,2660.9,60.49657]
[1739383708848,7.08817674,2661.3,2660.9,59.745]
[1739383709256,0.75155,2661.1,2660.9,59.745]
[1739383709556,3.2078,2661.0,2660.9,59.745]
[1739383709761,3.95936,2661.0,2660.9,59.745]
[1739383710054,9.69273674,2661.0,2660.9,59.745]
[1739383710352,9.7546332,2661.0,2660.9,58.00813909]
[1739383710556,15.7546332,2661.0,2660.9,56.81793909]
[1739383710767,16.10718356,2661.0,2660.9,45.86393909]
[1739383710957,16.10718356,2661.0,2660.9,44.68083909]
[1739383711458,16.10718356,2661.0,2660.9,39.20563909]
[1739383711656,15.35562356,2661.0,2660.8,0.00563454]
[1739383711958,0.81348646,2660.9,2660.8,0.00563454]
[1739383712352,1.16603682,2660.9,2660.8,0.00563454]
[1739383713459,2.95714036,2660.9,2660.8,0.00563454]
[1739383713753,2.60459,2660.9,2660.8,0.00563454]
[1739383714158,2.6664463,2660.9,2660.8,0.00563454]
[1739383714558,2.60459,2660.9,2660.8,0.00563454]
[1739383715550,2.60459,2660.9,2659.9,1.87968]
[1739383715551,7.91486458,2660.9,2659.3,3.2078]
[1739383715852,3.2078,2659.4,2658.5,3.2078]
[1739383716048,3.2078,2659.1,2658.6,1.87502]
[1739383716262,0.75217,2658.9,2658.6,1.1228]
[1739383716568,0.75218,2658.8,2658.6,1.1228]
[1739383716860,0.75777454,2659.0,2658.6,1.87502]
[1739383717060,0.00563454,2659.0,2658.6,1.1228]
[1739383717258,0.75775454,2659.0,2658.6,1.1228]
[1739383717559,0.00563454,2659.0,2658.6,1.1228]
[1739383717955,0.00563454,2659.0,2658.9,0.75215]
[1739383718659,0.00563454,2659.0,2658.6,1.1228]
[1739383718857,3.88601128,2659.0,2658.6,1.1228]
[1739383719056,3.88601128,2659.0,2658.5,0.00563454]
[1739383719257,0.75222,2658.7,2658.5,0.00563454]
[1739383719454,5.0618,2658.8,2658.5,0.00563454]
[1739383719659,0.75224,2658.6,2658.5,0.00563454]
[1739383721360,0.75222,2658.7,2658.5,0.00563454]
[1739383721566,5.814,2658.8,2658.5,0.00563454]
[1739383721765,5.0618,2658.8,2658.5,0.75788454]
[1739383722761,5.81399,2658.8,2658.5,0.00563454]
[1739383722962,5.81398,2658.8,2658.5,0.75788454]
[1739383723161,5.0618,2658.8,2658.5,0.00563454]
[1739383723460,5.0618,2658.8,2658.5,0.75788454]
[1739383723663,5.0618,2658.8,2658.7,0.75221]
[1739383723966,5.0618,2658.8,2658.5,0.00563454]
[1739383724162,3.2078,2658.8,2658.7,0.75221]
[1739383724368,0.00563454,2659.0,2658.5,3.21343454]
[1739383724667,0.00563454,2659.0,2658.9,0.75215]
[1739383724967,24.7508,2659.7,2658.8,3.2078]
[1739383725168,0.75197,2659.6,2659.4,0.75201]
[1739383725363,24.7508,2659.7,2659.2,0.5783]
[1739383725564,0.75214,2659.0,2658.7,0.75219]
[1739383725765,0.75215,2659.0,2658.5,0.00563454]
[1739383725967,1.855,2659.2,2658.8,0.75217]
[1739383726263,0.00563454,2659.0,2658.8,0.75217]
[1739383726661,0.00563454,2659.0,2658.5,0.00563454]
[1739383726855,0.00563454,2659.0,2658.6,3.2078]
[1739383727060,0.00563454,2659.0,2658.8,0.75216]
[1739383727265,0.00563454,2659.0,2658.9,0.75215]
[1739383727465,0.00563454,2659.0,2658.6,3.2078]
[1739383728066,0.00563454,2659.0,2658.9,0.75215]
[1739383728862,1.855,2659.4,2658.9,3.2078]
[1739383729063,1.855,2659.4,2659.3,0.75204]
[1739383729365,0.75196,2659.6,2659.0,1.88027]
[1739383729762,0.75196,2659.6,2659.5,0.75198]
[1739383729962,3.2078,2659.7,2659.5,0.75198]
[1739383730266,0.75197,2659.6,2659.5,0.75197]
[1739383730465,0.00563454,2659.8,2659.7,0.75193]
[1739383731767,0.75753454,2659.8,2659.7,0.75193]
[1739383731967,0.00563454,2659.8,2659.7,0.75193]
[1739383732169,0.75754454,2659.8,2659.7,0.75193]
[1739383732468,0.00563454,2659.8,2659.7,0.75193]
[1739383738469,3.2078,2660.1,2659.7,0.75193]
[1739383738669,3.2078,2660.1,2660.0,0.75184]
[1739383738971,3.95961,2660.1,2660.0,0.75184]
[1739383739769,3.2078,2660.1,2660.0,0.75184]
[1739383740072,3.95961,2660.1,2660.0,0.75184]
[1739383740274,3.2078,2660.1,2660.0,0.75184]
[1739383740470,0.00563454,2660.3,2659.8,3.2078]
[1739383740776,0.00563454,2660.3,2660.2,0.75178]
[1739383741171,0.00563454,2660.3,2660.2,1.34048]
[1739383741369,5.0618,2661.3,2660.5,1.8792]
[1739383741570,5.0618,2661.3,2661.0,0.75155]
[1739383741873,0.75152,2661.2,2661.1,0.75153]
[1739383742068,5.0618,2661.3,2660.6,2.43565]
[1739383742069,1.854,2661.3,2660.6,2.43565]
[1739383742267,1.854,2661.3,2660.7,1.87912]
[1739383742466,0.00563454,2661.2,2661.1,0.75151]
[1739383742875,0.75713454,2661.2,2661.1,0.75151]
[1739383743071,0.00563454,2661.2,2661.1,0.75151]
[1739383744174,0.75713454,2661.2,2660.7,3.2078]
[1739383744373,0.00563454,2661.2,2660.7,3.2078]
[1739383744672,0.00563454,2661.2,2660.6,0.5565]
[1739383744973,0.00563454,2661.2,2661.1,0.75153]
[1739383745475,0.35250407,2661.6,2661.2,0.7515]
[1739383745775,0.35250407,2661.6,2661.5,0.75142]
[1739383746075,0.75132,2661.9,2661.7,0.75135]
[1739383746267,1.30739,2662.0,2661.4,3.2078]
[1739383746572,0.35610954,2662.1,2661.5,0.00563454]
[1739383746871,1.10735954,2662.1,2662.0,0.75128]
[1739383747070,0.75129,2662.0,2661.9,0.7513]
[1739383747279,0.7513,2661.9,2661.8,0.75131]
[1739383747572,0.75129,2662.0,2661.9,0.7513]
[1739383747777,0.75495378,2662.1,2661.9,0.7513]
[1739383747976,0.00369378,2662.1,2662.0,0.75128]
[1739383753871,0.00369378,2662.1,2661.7,3.2078]
[1739383754067,0.00369378,2662.1,2661.5,0.00563454]
[1739383754273,0.00369378,2662.1,2662.0,0.75128]
[1739383755776,0.00369378,2662.1,2662.0,3.95908]
[1739383758582,0.75494378,2662.1,2662.0,3.95908]
[1739383758776,0.00369378,2662.1,2662.0,3.95908]
[1739383759585,3.21149378,2662.1,2661.5,0.00563454]
[1739383759769,0.75135,2661.8,2661.6,0.75138]
[1739383759971,0.6043,2662.0,2661.5,0.00563454]
[1739383760372,1.3556,2662.0,2661.5,0.00563454]
[1739383760569,0.6043,2662.0,2661.5,0.00563454]
[1739383760773,1.35559,2662.0,2661.8,0.75132]
[1739383760970,0.6043,2662.0,2661.8,0.75132]
[1739383761177,0.6043,2662.0,2661.5,0.00563454]
[1739383761376,0.75139,2661.6,2661.5,0.00563454]
[1739383762578,1.852,2661.7,2661.5,0.75703454]
[1739383762777,1.852,2661.7,2661.5,0.00563454]
[1739383762978,2.60338,2661.7,2661.5,0.75703454]
[1739383763379,2.60338,2661.7,2661.5,0.00563454]
[1739383763575,2.60336,2661.7,2661.5,0.00563454]
[1739383763781,1.852,2661.7,2661.5,0.00563454]
[1739383763980,0.75139,2661.6,2661.5,0.00563454]
[1739383765484,1.852,2661.7,2661.5,0.00563454]
[1739383765781,0.75138,2661.7,2661.5,0.75703454]
[1739383765978,0.75139,2661.6,2661.5,0.00563454]
[1739383768579,0.75139,2661.6,2661.5,0.75705454]
[1739383768784,3.56025709,2661.8,2661.5,0.00563454]
[1739383769178,0.75136,2661.7,2661.6,0.75137]
[1739383769579,3.95915,2661.8,2661.5,0.00563454]
[1739383769782,3.95915,2661.8,2661.7,0.75136]
[1739383769982,3.2078,2661.8,2661.5,0.00563454]
[1739383770290,0.75136,2661.7,2661.5,0.75702454]
[1739383770486,0.75136,2661.7,2661.5,0.00563454]
[1739383770788,0.35245709,2661.9,2661.8,0.75133]
[1739383770995,1.10375709,2661.9,2661.8,0.75133]
[1739383771387,0.35245709,2661.9,2661.8,0.75133]
[1739383771587,0.00369378,2662.1,2661.6,0.5482]
[1739383771786,0.00369378,2662.1,2662.0,0.75128]
[1739383771988,0.75494378,2662.1,2662.0,0.75128]
[1739383772191,0.00369378,2662.1,2662.0,0.75128]
[1739383772586,0.75494378,2662.1,2662.0,0.75128]
[1739383772786,0.00369378,2662.1,2662.0,0.75128]
[1739383773290,0.00369378,2662.1,2661.6,0.5482]
[1739383773589,0.75139,2661.6,2661.5,3.96485454]
[1739383773793,0.75139,2661.6,2661.5,3.21343454]
[1739383774299,0.75137,2661.7,2661.6,0.75137]
[1739383774491,0.75137,2661.7,2661.5,3.21343454]
[1739383774492,0.91735709,2661.8,2661.5,3.21343454]
[1739383774700,0.75136,2661.7,2661.5,3.96482454]
[1739383774988,0.75139,2661.6,2661.5,3.21343454]
[1739383775396,0.75139,2661.6,2661.5,3.96485454]
[1739383775784,0.75139,2661.6,2661.5,3.21343454]
[1739383775984,0.75139,2661.6,2661.5,0.00563454]
[1739383776197,7.29083282,2661.6,2661.5,0.00563454]
[1739383777095,7.64328991,2661.6,2661.5,0.00563454]
[1739383777990,0.75157,2661.0,2660.8,0.7516]
[1739383778187,0.75164,2660.7,2660.4,4.3593]
[1739383778388,0.75164,2660.7,2660.2,0.75177]
[1739383778389,4.08335282,2660.5,2660.2,0.75177]
[1739383778693,4.08335282,2660.5,2660.2,0.75178]
[1739383778893,3.68409991,2660.5,2660.2,0.75178]
[1739383779589,3.68409991,2660.5,2660.1,0.05755278]
[1739383779590,0.35245709,2660.5,2660.1,0.05755278]
[1739383779994,0.75173,2660.4,2660.1,0.80934278]
[1739383780196,4.12279163,2660.6,2660.1,0.05755278]
[1739383780696,4.31756163,2660.6,2660.1,0.05755278]
[1739383780899,4.31756163,2660.6,2660.4,0.75172]
[1739383781087,0.35809163,2660.6,2660.1,0.05755278]
[1739383781290,0.35809163,2660.6,2660.5,0.7517]
[1739383782397,0.00563454,2660.6,2660.5,0.7517]
[1739383782596,0.00563454,2660.6,2660.5,2.4694]
[1739383784699,0.00563454,2660.6,2660.5,1.8983]
[1739383785201,3.2078,2661.4,2660.5,10.3544]
[1739383785401,0.75149,2661.3,2661.1,0.75153]
[1739383785701,0.75151,2661.2,2661.1,0.75151]
[1739383786097,5.0598,2661.5,2660.6,1.87914]
[1739383786298,3.88208288,2661.4,2660.8,0.75159]
[1739383786598,0.75164,2660.8,2660.7,0.75163]
[1739383786798,5.76092288,2661.1,2660.7,0.75164]
[1739383787003,5.76092288,2661.1,2660.5,4.3544]
[1739383787196,0.75165,2660.7,2660.6,0.75165]
[1739383787395,5.76092288,2661.1,2660.7,0.75164]
[1739383787396,0.75164,2660.8,2660.7,0.75164]
[1739383788299,0.75164,2660.8,2660.5,4.3544]
[1739383788601,3.2078,2660.9,2660.5,0.75169]
[1739383788803,0.75169,2660.6,2660.4,0.75171]
[1739383789198,0.75166,2660.7,2660.1,3.26535278]
[1739383789403,0.75164,2660.7,2660.6,0.75167]
[1739383789601,1.852,2660.8,2660.7,0.75164]
[1739383789801,3.56037044,2660.9,2660.4,1.8793]
[1739383790109,3.2078,2660.9,2660.8,0.75162]
[1739383791706,5.0598,2661.2,2660.6,0.75167]
[1739383791905,0.75158,2661.0,2660.9,0.75158]
[1739383792115,5.0598,2661.2,2660.6,0.75167]
[1739383792509,3.2078,2661.2,2660.7,1.8791]
[1739383792809,3.2078,2661.2,2660.6,0.75167]
[1739383793001,0.75153,2661.1,2660.9,0.75157]
[1739383793201,0.75154,2661.1,2661.0,0.75154]
[1739383793401,0.35251336,2661.2,2661.1,0.75153]
[1739383793709,5.66579378,2661.3,2661.1,0.75153]
[1739383793899,0.7515,2661.2,2661.1,0.75153]
[1739383794102,0.60599378,2661.3,2660.8,1.87905]
[1739383794312,0.60599378,2661.3,2661.2,0.7515]
[1739383794313,0.00369378,2661.3,2661.2,0.7515]
[1739383795207,0.35250023,2661.9,2661.8,0.75133]
[1739383795602,0.75128,2662.0,2661.9,0.75131]
[1739383795807,0.75133,2661.9,2661.7,0.75136]
[1739383796112,0.75135,2661.8,2661.6,0.75138]
[1739383796305,0.75136,2661.8,2661.6,0.75138]
[1739383797009,0.75136,2661.7,2661.5,0.75704454]
[1739383797311,0.5479,2661.9,2661.5,0.00563454]
[1739383797509,0.75137,2661.7,2661.5,0.75704454]
[1739383798103,0.75136,2661.8,2661.5,0.75704454]
[1739383798406,0.75137,2661.7,2661.5,0.75704454]
[1739383798610,0.75139,2661.6,2661.5,0.00563454]
[1739383799006,5.81019,2661.6,2661.5,0.00563454]
[1739383799206,6.16266062,2661.6,2661.5,0.00563454]
[1739383799411,6.22457419,2661.6,2661.5,0.00563454]
[1739383799913,0.75153,2661.2,2660.9,3.95937]
[1739383800107,3.88208288,2661.4,2660.9,3.95937]
[1739383800412,0.75151,2661.2,2660.9,3.95937]
[1739383800614,3.88208288,2661.4,2660.9,3.95937]
[1739383800808,3.2078,2661.2,2660.5,0.5994]
[1739383801115,0.75158,2661.0,2660.9,0.00563454]
[1739383801501,0.75156,2661.0,2660.9,0.00563454]